[Event "5th Cesme Open 2017"]
[Site "Cesme"]
[Date "2017.06.13"]
[Round "2"]
[White "Karabas, Baris"]
[Black "Akalin, Bilgehan"]
[Result "1/2-1/2"]
[ECO "A49"]
[WhiteElo "1598"]
[BlackElo "1419"]
[Annotator "NA RC"]
[PlyCount "144"]
[EventType "swiss"]
[EventCountry "TUR"]
[SourceTitle "playchess.com"]
[Source "ChessBase"]
[SourceQuality "1"]
[TimeControl "5400+30"]

1. d4 {[%emt 0:02:30]} Nf6 {[%emt 0:01:00]} 2. Nf3 {[%emt 0:00:30]} g6 {[%emt 0:00:00]} 3. g3 {[%emt 0:00:00]} Bg7 {[%emt 0:00:00]} 4. Bg2 {[%emt 0:00:00]} O-O {[%emt 0:00:30]} 5. O-O {[%emt 0:00:00]} c5 {[%emt 0:03:30]} 6. e3 {[%emt 0:02:00]} Nc6 {[%emt 0:01:30]} 7. c4 {[%emt 0:16:30]} d5 {[%emt 0:19:30]} 8. cxd5 {[%emt 0:23:30]} Nxd5 {[%emt 0:12:30]} 9. dxc5 {[%emt 0:10:30]} Ndb4 {[%emt 0:04:30]} 10. Nc3 {[%emt 0:12:30]} Qa5 {[%emt 0:05:30]} 11. a3 {[%emt 0:07:30]} Bxc3 {[%emt 0:15:30]} 12. bxc3 {[%emt 0:00:30]} Na6 {[%emt 0:00:30]} 13. Qc2 {[%emt 0:09:54]} Nxc5 {[%emt 0:00:30]} 14. Nd4 {[%emt 0:02:20]} Ne5 {[%emt 0:08:30]} 15. c4 {[%emt 0:03:09]} Qa4 {[%emt 0:02:30]} 16. Qxa4 {[%emt 0:00:43]} Nxa4 {[%emt 0:00:00]} 17. Bd2 {[%emt 0:04:02]} Nxc4 {[%emt 0:02:00]} 18. Bb4 {[%emt 0:00:02]} Nd6 {[%emt 0:02:22]} 19. Bxd6 {[%emt 0:01:06]} exd6 {[%emt 0:00:30]} 20. Nb5 {[%emt 0:00:00]} Rd8 {[%emt 0:10:00]} 21. Rfd1 {[%emt 0:00:44]} Nc5 {[%emt 0:02:12]} 22. Rac1 {[%emt 0:01:15]} Be6 {[%emt 0:03:34]} 23. Rxd6 {[%emt 0:01:03]} Rdc8 {[%emt 0:03:20]} 24. Nd4 {[%emt 0:01:04]} Rab8 {[%emt 0:01:35]} 25. Nxe6 {[%emt 0:00:18]} fxe6 {[%emt 0:00:46]} 26. Bh3 {[%emt 0:00:13]} Kf7 {[%emt 0:00:15]} 27. Kg2 {[%emt 0:00:42]} b6 {[%emt 0:00:13]} 28. Bg4 {[%emt 0:00:41]} Rd8 {[%emt 0:00:49]} 29. Rc6 {[%emt 0:00:21]} Rb7 {[%emt 0:00:50]} 30. h4 {[%emt 0:00:29]} Rbd7 {[%emt 0:00:28]} 31. h5 {[%emt 0:00:43]} Rd6 {[%emt 0:00:32]} 32. hxg6+ {[%emt 0:00:16]} hxg6 {[%emt 0:00:29]} 33. Rc7+ {[%emt 0:00:36]} R6d7 {[%emt 0:00:26]} 34. Rxd7+ {[%emt 0:00:18]} Rxd7 {[%emt 0:00:07]} 35. Rc4 {[%emt 0:00:51]} Rd3 {[%emt 0:00:45]} 36. a4 {[%emt 0:00:29]} Ra3 {[%emt 0:00:17]} 37. Bd1 {[%emt 0:00:25]} Ra2 {[%emt 0:00:48]} 38. Rf4+ {[%emt 0:00:33]} Kg7 {[%emt 0:00:38]} 39. Rd4 {[%emt 0:00:31]} Ra3 {[%emt 0:00:33]} 40. Bc2 {[%emt 0:00:32]} Kf6 {[%emt 0:00:29]} 41. Rf4+ {[%emt 0:00:22]} Kg5 {[%emt 0:00:29]} 42. Kf3 {[%emt 0:00:26]} Rc3 {[%emt 0:00:30]} 43. Rg4+ {[%emt 0:00:32]} Kf6 {[%emt 0:00:12]} 44. Bxg6 {[%emt 0:00:26]} Nd3 {[%emt 0:00:31]} 45. Bxd3 {[%emt 0:00:19]} Rxd3 {[%emt 0:00:01]} 46. Rc4 {[%emt 0:00:33]} Rd5 {[%emt 0:00:38]} 47. Ke4 {[%emt 0:00:48]} Ra5 {[%emt 0:00:27]} 48. f4 {[%emt 0:00:22]} b5 {[%emt 0:00:15]} 49. axb5 {[%emt 0:00:16]} Rxb5 {[%emt 0:00:05]} 50. Ra4 {[%emt 0:00:06]} a5 {[%emt 0:00:58]} 51. g4 {[%emt 0:00:50]} e5 {[%emt 0:01:01]} 52. g5+ {[%emt 0:00:46]} Kg6 {[%emt 0:00:31]} 53. Rc4 {[%emt 0:00:35]} exf4 {[%emt 0:00:41]} 54. exf4 {[%emt 0:00:05]} Rb6 {[%emt 0:00:26]} 55. Kd4 {[%emt 0:00:46]} Rd6+ {[%emt 0:00:44]} 56. Kc5 {[%emt 0:00:29]} Rd3 {[%emt 0:00:30]} 57. Kb5 {[%emt 0:00:41]} Rf3 {[%emt 0:00:32]} 58. Kxa5 {[%emt 0:00:08]} Kf5 {[%emt 0:00:05]} 59. Kb5 {[%emt 0:00:31]} Kg6 {[%emt 0:00:39]} 60. Kc5 {[%emt 0:00:18]} Kf5 {[%emt 0:00:04]} 61. Kd5 {[%emt 0:01:08]} Rd3+ {[%emt 0:00:51]} 62. Kc5 {[%emt 0:00:02]} Rf3 {[%emt 0:00:21]} 63. Kd6 {[%emt 0:00:26]} Re3 {[%emt 0:00:07]} 64. Kd5 {[%emt 0:00:58]} Rd3+ {[%emt 0:00:10]} 65. Rd4 {[%emt 0:00:24]} Re3 {[%emt 0:00:07]} 66. Kd6 {[%emt 0:00:37]} Re8 {[%emt 0:01:01]} 67. Kd7 {[%emt 0:00:42]} Re3 {[%emt 0:00:09]} 68. Kd6 {[%emt 0:00:03]} Re8 {[%emt 0:00:08]} 69. Rc4 {[%emt 0:00:54]} Re3 {[%emt 0:00:33]} 70. Rc1 {[%emt 0:00:26]} Kxf4 {[%emt 0:00:35]} 71. Rg1 {[%emt 0:00:04]} Kf5 {[%emt 0:00:10]} 72. Kd7 {[%emt 0:00:31]} Kg6 {[%emt 0:00:05]} 1/2-1/2

[Event "5th Cesme Open 2017"]
[Site "Cesme"]
[Date "2017.06.13"]
[Round "2"]
[White "Koca, Emirhan"]
[Black "Daloglu, Berkay"]
[Result "0-1"]
[ECO "B72"]
[WhiteElo "1566"]
[BlackElo "1659"]
[Annotator "NA RC"]
[PlyCount "90"]
[EventType "swiss"]
[EventCountry "TUR"]
[SourceTitle "playchess.com"]
[Source "ChessBase"]
[SourceQuality "1"]
[TimeControl "5400+30"]

1. e4 {[%emt 0:00:30]} c5 {[%emt 0:01:00]} 2. Nf3 {[%emt 0:00:30]} g6 {[%emt 0:00:30]} 3. Nc3 {[%emt 0:01:30]} Bg7 {[%emt 0:00:30]} 4. d4 {[%emt 0:00:00]} cxd4 {[%emt 0:00:00]} 5. Nxd4 {[%emt 0:00:00]} Nc6 {[%emt 0:00:00]} 6. Be3 {[%emt 0:00:00]} Nf6 {[%emt 0:00:30]} 7. Be2 {[%emt 0:00:00]} O-O {[%emt 0:04:30]} 8. Nb3 {[%emt 0:06:30]} d6 {[%emt 0:03:30]} 9. f3 {[%emt 0:01:30]} Bd7 {[%emt 0:04:30]} 10. Qd2 {[%emt 0:00:30]} Re8 {[%emt 0:13:30]} 11. g4 {[%emt 0:01:30]} Ne5 {[%emt 0:20:30]} 12. O-O-O {[%emt 0:14:30]} Be6 {[%emt 0:09:30]} 13. g5 {[%emt 0:08:30]} Nfd7 {[%emt 0:01:30]} 14. f4 {[%emt 0:09:30]} Nc4 {[%emt 0:01:30]} 15. Bxc4 {[%emt 0:00:30]} Bxc4 {[%emt 0:00:30]} 16. Bd4 {[%emt 0:00:30]} f6 {[%emt 0:23:15]} 17. h4 {[%emt 0:03:30]} Bf7 {[%emt 0:00:39]} 18. f5 {[%emt 0:03:30]} Ne5 {[%emt 0:01:46]} 19. Bxe5 {[%emt 0:04:30]} dxe5 {[%emt 0:01:03]} 20. Qg2 {[%emt 0:02:30]} Qb6 {[%emt 0:00:52]} 21. Qg1 {[%emt 0:09:30]} Qxg1 {[%emt 0:00:56]} 22. Rdxg1 {[%emt 0:00:30]} Red8 {[%emt 0:01:04]} 23. Rg2 {[%emt 0:02:30]} Rd6 {[%emt 0:03:51]} 24. Nc5 {[%emt 0:07:30]} b6 {[%emt 0:00:49]} 25. Nd3 {[%emt 0:00:30]} Rc8 {[%emt 0:00:48]} 26. h5 {[%emt 0:02:43]} fxg5 {[%emt 0:01:29]} 27. hxg6 {[%emt 0:00:17]} hxg6 {[%emt 0:00:14]} 28. Rxg5 {[%emt 0:00:46]} Kf8 {[%emt 0:03:28]} 29. fxg6 {[%emt 0:01:03]} Rxg6 {[%emt 0:00:54]} 30. Rf5 {[%emt 0:01:05]} e6 {[%emt 0:01:01]} 31. Rf3 {[%emt 0:01:15]} Ke7 {[%emt 0:00:48]} 32. Rhf1 {[%emt 0:03:42]} Bg8 {[%emt 0:00:55]} 33. Kd1 {[%emt 0:03:57]} Rf6 {[%emt 0:00:34]} 34. Kd2 {[%emt 0:02:56]} Rxf3 {[%emt 0:00:30]} 35. Rxf3 {[%emt 0:00:01]} Bf6 {[%emt 0:00:22]} 36. Ne2 {[%emt 0:00:57]} Bf7 {[%emt 0:00:22]} 37. Nc3 {[%emt 0:01:22]} Rh8 {[%emt 0:00:43]} 38. Nb5 {[%emt 0:02:15]} a6 {[%emt 0:00:24]} 39. Na3 {[%emt 0:00:44]} b5 {[%emt 0:00:17]} 40. Nc5 {[%emt 0:01:30]} b4 {[%emt 0:00:40]} 41. Nxa6 {[%emt 0:04:44]} bxa3 {[%emt 0:00:13]} 42. Rxa3 {[%emt 0:00:03]} Rh2+ {[%emt 0:00:53]} 43. Kc3 {[%emt 0:01:01]} Be8 {[%emt 0:00:29]} 44. Nc5 {[%emt 0:00:29]} Rh3+ {[%emt 0:00:33]} 45. Nd3 {[%emt 0:00:21]} Bc6 {[%emt 0:00:18]} 0-1

[Event "5th Cesme Open 2017"]
[Site "Cesme"]
[Date "2017.06.13"]
[Round "2"]
[White "Acikgoz, Onder"]
[Black "Ozcan, Kaan"]
[Result "1/2-1/2"]
[ECO "B01"]
[WhiteElo "1489"]
[BlackElo "1646"]
[Annotator "NA RC"]
[PlyCount "116"]
[EventType "swiss"]
[EventCountry "TUR"]
[SourceTitle "playchess.com"]
[Source "ChessBase"]
[SourceQuality "1"]
[TimeControl "5400+30"]

1. e4 {[%emt 0:00:30]} d5 {[%emt 0:01:00]} 2. exd5 {[%emt 0:00:30]} Qxd5 {[%emt 0:00:30]} 3. d4 {[%emt 0:01:30]} Nf6 {[%emt 0:01:30]} 4. Nf3 {[%emt 0:00:30]} Bg4 {[%emt 0:04:30]} 5. Be2 {[%emt 0:00:30]} c6 {[%emt 0:01:30]} 6. c4 {[%emt 0:02:30]} Qd8 {[%emt 0:02:30]} 7. Qb3 {[%emt 0:02:30]} Qb6 {[%emt 0:10:30]} 8. Nc3 {[%emt 0:03:30]} e6 {[%emt 0:09:30]} 9. Bf4 {[%emt 0:01:30]} Nbd7 {[%emt 0:06:30]} 10. O-O {[%emt 0:05:30]} Be7 {[%emt 0:06:30]} 11. Rfd1 {[%emt 0:07:30]} O-O {[%emt 0:25:30]} 12. h3 {[%emt 0:03:30]} Bh5 {[%emt 0:06:41]} 13. Qc2 {[%emt 0:04:30]} Bg6 {[%emt 0:03:03]} 14. Bd3 {[%emt 0:00:30]} c5 {[%emt 0:10:20]} 15. Bxg6 {[%emt 0:04:30]} hxg6 {[%emt 0:00:10]} 16. d5 {[%emt 0:04:30]} exd5 {[%emt 0:01:52]} 17. cxd5 {[%emt 0:00:30]} Bd6 {[%emt 0:01:58]} 18. Bxd6 {[%emt 0:07:30]} Qxd6 {[%emt 0:00:04]} 19. Nd2 {[%emt 0:01:30]} Nb6 {[%emt 0:02:16]} 20. Nde4 {[%emt 0:01:30]} Qc7 {[%emt 0:02:15]} 21. Nxf6+ {[%emt 0:05:30]} gxf6 {[%emt 0:00:01]} 22. Ne4 {[%emt 0:00:00]} Qf4 {[%emt 0:01:28]} 23. Rac1 {[%emt 0:06:00]} c4 {[%emt 0:00:45]} 24. g3 {[%emt 0:10:30]} Qf5 {[%emt 0:00:33]} 25. Kg2 {[%emt 0:00:30]} Rfd8 {[%emt 0:00:24]} 26. Nc3 {[%emt 0:03:30]} Qxc2 {[%emt 0:00:09]} 27. Rxc2 {[%emt 0:00:00]} Rac8 {[%emt 0:00:12]} 28. Rcd2 {[%emt 0:01:00]} f5 {[%emt 0:00:32]} 29. d6 {[%emt 0:00:00]} a6 {[%emt 0:00:57]} 30. a4 {[%emt 0:01:00]} Rc6 {[%emt 0:00:43]} 31. Kf3 {[%emt 0:02:30]} Nc8 {[%emt 0:00:38]} 32. d7 {[%emt 0:00:00]} Ne7 {[%emt 0:00:11]} 33. a5 {[%emt 0:01:25]} Kf8 {[%emt 0:00:31]} 34. Na4 {[%emt 0:00:27]} Kg7 {[%emt 0:00:37]} 35. Nb6 {[%emt 0:00:10]} c3 {[%emt 0:00:24]} 36. bxc3 {[%emt 0:00:48]} Rxc3+ {[%emt 0:00:14]} 37. Rd3 {[%emt 0:00:27]} Rxd3+ {[%emt 0:00:25]} 38. Rxd3 {[%emt 0:00:13]} Nc6 {[%emt 0:00:56]} 39. Rd5 {[%emt 0:01:08]} Kf6 {[%emt 0:00:36]} 40. Ke3 {[%emt 0:02:04]} Ke6 {[%emt 0:00:09]} 41. Rc5 {[%emt 0:00:47]} f6 {[%emt 0:00:57]} 42. f3 {[%emt 0:00:29]} Ke7 {[%emt 0:00:32]} 43. g4 {[%emt 0:01:07]} fxg4 {[%emt 0:00:11]} 44. fxg4 {[%emt 0:00:19]} g5 {[%emt 0:00:32]} 45. Ke4 {[%emt 0:00:47]} Ne5 {[%emt 0:00:43]} 46. Rc7 {[%emt 0:00:25]} Nc6 {[%emt 0:00:35]} 47. Kd5 {[%emt 0:02:42]} Nxa5 {[%emt 0:00:27]} 48. Nc8+ {[%emt 0:00:44]} Kf7 {[%emt 0:00:26]} 49. Nd6+ {[%emt 0:00:48]} Ke7 {[%emt 0:00:12]} 50. Nf5+ {[%emt 0:01:39]} Kf7 {[%emt 0:00:07]} 51. Kd6 {[%emt 0:00:55]} Nc6 {[%emt 0:00:55]} 52. Rxb7 {[%emt 0:00:11]} Ne5 {[%emt 0:00:15]} 53. Rc7 {[%emt 0:00:46]} a5 {[%emt 0:00:11]} 54. Nd4 {[%emt 0:00:07]} a4 {[%emt 0:00:57]} 55. Nc6 {[%emt 0:02:54]} Rxd7+ {[%emt 0:00:10]} 56. Rxd7+ {[%emt 0:00:15]} Nxd7 {[%emt 0:00:03]} 57. Kxd7 {[%emt 0:00:18]} a3 {[%emt 0:00:22]} 58. Nb4 {[%emt 0:00:03]} f5 {[%emt 0:00:23]} 1/2-1/2

[Event "5th Cesme Open 2017"]
[Site "Cesme"]
[Date "2017.06.13"]
[Round "3.16"]
[White "Gokerkan, Cem Kaan"]
[Black "Kerem, Halil Ozgun"]
[Result "1-0"]
[ECO "B96"]
[WhiteElo "2333"]
[BlackElo "2050"]
[Annotator "ChessBase"]
[PlyCount "121"]
[EventType "swiss"]
[EventCountry "TUR"]
[SourceTitle "playchess.com"]
[Source "ChessBase"]
[SourceQuality "1"]
[TimeControl "5400+30"]

1. e4 {[%emt 0:03:30]} c5 {[%emt 0:01:00]} 2. Nf3 {[%emt 0:01:30]} d6 {[%emt 0:00:00]} 3. d4 {[%emt 0:00:30]} cxd4 {[%emt 0:00:00]} 4. Nxd4 {[%emt 0:00:30]} Nf6 {[%emt 0:00:00]} 5. Nc3 {[%emt 0:02:30]} a6 {[%emt 0:00:00]} 6. Bg5 {[%emt 0:00:30]} e6 {[%emt 0:00:30]} 7. f4 {[%emt 0:00:00]} Nbd7 {[%emt 0:00:00]} 8. Qe2 {[%emt 0:01:00]} Qc7 {[%emt 0:00:00]} 9. O-O-O {[%emt 0:00:30]} b5 {[%emt 0:00:30]} 10. a3 {[%emt 0:00:30]} Bb7 {[%emt 0:00:00]} 11. g4 {[%emt 0:00:30]} Be7 {[%emt 0:00:00]} 12. Bg2 {[%emt 0:04:30]} Qc4 {[%emt 0:00:00] [%clk 1:35]} 13. Qxc4 {[%emt 0:06:30]} bxc4 {[%emt 0:00:00]} 14. Bf3 {[%emt 0:05:30]} h6 {[%emt 0:16:30]} 15. Bxf6 {[%emt 0:02:30]} Bxf6 {[%emt 0:00:30]} 16. h4 {[%emt 0:03:30]} g5 {[%emt 0:08:30]} 17. hxg5 {[%emt 0:05:30]} hxg5 {[%emt 0:00:30]} 18. Rxh8+ {[%emt 0:01:30]} Bxh8 {[%emt 0:00:30]} 19. f5 {[%emt 0:01:30]} Nc5 {[%emt 0:14:30]} 20. fxe6 {[%emt 0:02:30]} fxe6 {[%emt 0:00:30]} 21. Be2 {[%emt 0:00:30]} d5 {[%emt 0:05:30]} 22. exd5 {[%emt 0:01:30]} exd5 {[%emt 0:00:30]} 23. Bf3 {[%emt 0:02:30]} O-O-O {[%emt 0:00:30]} 24. Nce2 {[%emt 0:00:30]} Bf6 {[%emt 0:04:30]} 25. Nf5 {[%emt 0:06:30]} Ne6 {[%emt 0:03:30]} 26. Ne3 {[%emt 0:04:30]} Nc7 {[%emt 0:03:30]} 27. Nd4 {[%emt 0:00:30]} Bxd4 {[%emt 0:02:30]} 28. Rxd4 {[%emt 0:01:30]} Ne6 {[%emt 0:00:00]} 29. Rd1 {[%emt 0:00:30]} Nf4 {[%emt 0:04:00]} 30. Nxc4 {[%emt 0:00:30]} d4 {[%emt 0:00:00]} 31. Bxb7+ {[%emt 0:01:30]} Kxb7 {[%emt 0:00:00]} 32. Ne5 {[%emt 0:01:30]} Rd5 {[%emt 0:07:30]} 33. Nd3 {[%emt 0:01:30]} Ng2 {[%emt 0:00:30]} 34. Kd2 {[%emt 0:02:30]} Ne3 {[%emt 0:00:30]} 35. Rg1 {[%emt 0:00:30]} Kb6 {[%emt 0:01:30]} 36. b3 {[%emt 0:00:30]} Rd6 {[%emt 0:02:30]} 37. Ne5 {[%emt 0:04:30]} Rh6 {[%emt 0:01:30]} 38. Nf3 {[%emt 0:00:30]} Kc5 {[%emt 0:02:30]} 39. Kd3 {[%emt 0:00:30]} Rh3 {[%emt 0:02:30]} 40. Nxg5 {[%emt 0:01:30]} Rh2 {[%emt 0:00:30]} 41. c3 {[%emt 0:01:30]} Nd5 {[%emt 0:00:30]} 42. cxd4+ {[%emt 0:00:00]} Kc6 {[%emt 0:00:30]} 43. Rc1+ {[%emt 0:03:00]} Kd7 {[%emt 0:00:30]} 44. Ne4 {[%emt 0:00:30]} Rh3+ {[%emt 0:00:00]} 45. Kc4 {[%emt 0:00:00]} Ne3+ {[%emt 0:01:00]} 46. Kb4 {[%emt 0:00:00]} Nxg4 {[%emt 0:00:30]} 47. Nc5+ {[%emt 0:00:30]} Kd6 {[%emt 0:00:00]} 48. Nxa6 {[%emt 0:00:30]} Kd5 {[%emt 0:01:00]} 49. Nc7+ {[%emt 0:00:30]} Kd6 {[%emt 0:00:00]} 50. Nb5+ {[%emt 0:00:00]} Kd5 {[%emt 0:00:00]} 51. Rc5+ {[%emt 0:00:00]} Ke4 {[%emt 0:00:00]} 52. Nc3+ {[%emt 0:02:30]} Ke3 {[%emt 0:00:00]} 53. d5 {[%emt 0:00:30]} Ne5 {[%emt 0:00:30]} 54. Rc8 {[%emt 0:00:30]} Kd4 {[%emt 0:00:30]} 55. a4 {[%emt 0:00:30]} Nd3+ {[%emt 0:00:30]} 56. Kb5 {[%emt 0:00:30]} Ne5 {[%emt 0:00:30]} 57. a5 {[%emt 0:00:30]} Rxc3 {[%emt 0:00:30]} 58. Rxc3 {[%emt 0:00:00]} Kxc3 {[%emt 0:00:00]} 59. a6 {[%emt 0:00:00]} Nf7 {[%emt 0:00:00]} 60. a7 {[%emt 0:00:30]} Nd6+ {[%emt 0:00:30]} 61. Kc6 {[%emt 0:00:00]} 1-0

[Event "5th Cesme Open 2017"]
[Site "Cesme"]
[Date "2017.06.13"]
[Round "3.17"]
[White "Kuruz, Yusuf"]
[Black "Ozen, Bahadir"]
[Result "0-1"]
[ECO "E62"]
[WhiteElo "1886"]
[BlackElo "2332"]
[Annotator "NA"]
[PlyCount "68"]
[EventType "swiss"]
[EventCountry "TUR"]
[SourceTitle "playchess.com"]
[Source "ChessBase"]
[SourceQuality "1"]
[TimeControl "5400+30"]

{[%evp 21,60,-12,9,-1,32,8,45,-17,-11,-37,-7,-16,-26,-23,0,-5,-20,-19,-15,-144,-139,-133,-122,-198,-192,-200,-178,-248,-202,-360,-326,-400,-394,32767,-463,-591,-593,-593,-499,-431,-529]} 1. d4 {[%emt 0:00:30]} g6 {[%emt 0:01:00]} 2. g3 {[%emt 0:01:30]} Bg7 {[%emt 0:00:30]} 3. Bg2 {[%emt 0:00:30]} d6 {[%emt 0:01:30]} 4. c4 {[%emt 0:01:30]} Nf6 {[%emt 0:00:30]} 5. Nc3 {[%emt 0:00:30]} O-O {[%emt 0:00:30]} 6. Nf3 {[%emt 0:00:30]} c6 {[%emt 0:00:30]} 7. O-O {[%emt 0:01:30]} Bf5 {[%emt 0:00:30]} 8. Nh4 {[%emt 0:04:30]} Be6 {[%emt 0:00:30]} 9. d5 {[%emt 0:01:30]} cxd5 {[%emt 0:00:00]} 10. cxd5 {[%emt 0:00:30]} Bd7 {[%emt 0:00:00] [%clk 1:30]} 11. h3 {[%emt 0:07:30]} Na6 {[%emt 0:01:30] E62: King's Indian: Fianchetto: 6...c6 and Panno Variation (6...Nc6) without ...a6} 12. Be3 {[%emt 0:00:30]} Qa5 {[%emt 0:00:30]} 13. a3 {[%emt 0:02:30] LiveBook: 7 Games} Rfc8 {[%emt 0:00:00]} 14. b4 {[%emt 0:06:30]} (14. Bd4 Qd8 15. Re1 Nc7 16. Qb3 Nh5 17. Bxg7 Kxg7 18. e4 Kg8 19. e5 dxe5 20. Rxe5 {1-0 (36) Navara,D (2742)-Suran,J (2421) Prague 2016}) 14... Qd8 $1 {[%emt 0:00:00]} 15. Rc1 {[%emt 0:04:30]} Nc7 $146 {[%emt 0:08:30]} ({Predecessor:} 15... Rc4 16. Qb3 Rac8 17. Na2 Rxc1 18. Rxc1 Rxc1+ 19. Nxc1 {½-½ (31) Svetlov,D (2396)-Klukin,K (2225) Moscow 2015}) 16. Qd3 {[%emt 0:02:30]} Qe8 {[%emt 0:01:30]} 17. Bd4 {[%emt 0:07:30]} Nb5 {[%emt 0:01:30]} 18. Nxb5 {[%emt 0:00:30]} Bxb5 {[%emt 0:00:30]} 19. Qe3 {[%emt 0:00:30]} Bc4 {[%emt 0:06:30]} 20. Bxa7 {[%emt 0:10:30]} (20. g4 $11 {remains equal.}) 20... Nxd5 {[%emt 0:01:30]} 21. Bxd5 {[%emt 0:01:30]} Bxd5 {[%emt 0:00:30]} 22. Ng2 {[%emt 0:05:30]} (22. Nf3 $17) 22... e5 {[%emt 0:02:30]} 23. Bb6 {[%emt 0:04:30]} Qe6 {[%emt 0:01:30]} 24. Kh2 {[%emt 0:01:30]} (24. Rxc8+ {was worth a try.} Qxc8 25. g4) 24... Bc4 {[%emt 0:01:30]} 25. Ba5 $2 {[%emt 0:12:30]} (25. f4) 25... d5 {[%emt 0:01:30]} 26. f4 {[%emt 0:05:55]} d4 {[%emt 0:04:30]} 27. Qe4 {[%emt 0:01:10]} Bd5 {[%emt 0:01:30]} 28. Rxc8+ {[%emt 0:00:49]} Rxc8 {[%emt 0:00:30]} 29. Qd3 {[%emt 0:06:18]} Bxg2 {[%emt 0:02:30]} 30. Kxg2 {[%emt 0:00:17]} b6 $19 {[%emt 0:00:30]} 31. Bxb6 {[%emt 0:01:38]} Qxb6 {[%emt 0:00:30]} 32. fxe5 {[%emt 0:00:22]} Bxe5 {[%emt 0:01:30]} 33. Qb3 {[%emt 0:01:04]} Qb7+ {[%emt 0:00:30]} 34. Kh2 {[%emt 0:00:23]} Rc3 {[%emt 0:00:30]} 0-1

[Event "5th Cesme Open 2017"]
[Site "Cesme"]
[Date "2017.06.13"]
[Round "3.18"]
[White "Grigoriev, Armen"]
[Black "Demirbas, Emre"]
[Result "1-0"]
[ECO "A16"]
[WhiteElo "2105"]
[BlackElo "1973"]
[Annotator "NA RC"]
[PlyCount "82"]
[EventType "swiss"]
[EventCountry "TUR"]
[SourceTitle "playchess.com"]
[Source "ChessBase"]
[SourceQuality "1"]
[TimeControl "5400+30"]

{[%evp 8,61,37,16,39,29,32767,32767,32767,32767,32767,32767,32767,32767,32767,32767,32767,32767,32767,56,65,67,74,71,131,82,200,192,211,162,164,154,150,32767,32767,127,114,73,73,77,99,95,116,97,139,116,181,146,134,146,152,103,83,32767,322,376]} 1. c4 {[%emt 0:00:30]} Nf6 {[%emt 0:01:00]} 2. Nc3 {[%emt 0:00:00]} g6 {[%emt 0:00:30]} 3. g3 {[%emt 0:00:00]} Bg7 {[%emt 0:00:30]} 4. Bg2 {[%emt 0:00:30]} O-O {[%emt 0:00:00]} 5. d3 {[%emt 0:01:30]} c6 {[%emt 0:01:00]} 6. e4 {[%emt 0:00:00] LiveBook: 103 Games} d6 {[%emt 0:01:30]} 7. Nge2 {[%emt 0:00:00]} Nbd7 {[%emt 0:00:30]} 8. O-O {[%emt 0:00:30]} Qc7 {[%emt 0:00:30] A16: English Opening: 1...Nf6 with ...d5} (8... e5 9. h3 a6 10. Be3 b5 11. b4 Rb8 12. cxb5 axb5 13. a4 bxa4 14. Qxa4 Bb7 15. Qc2 Qe7 16. Ra7 Rfc8 17. Na4 Ba8 18. Nb6 {1-0 (18) Cvetkovic,S (2395)-Masic,P (2372) Belgrade 2012}) 9. h3 {[%emt 0:00:00]} a6 {[%emt 0:00:00]} 10. a4 {[%emt 0:01:00]} Rb8 $146 {[%emt 0:08:00]} ({Predecessor:} 10... e5) 11. a5 {[%emt 0:00:30]} b5 {[%emt 0:01:30]} 12. axb6 {[%emt 0:00:00]} Nxb6 {[%emt 0:00:30] [%clk 1:21]} 13. Be3 {[%emt 0:04:00]} c5 {[%emt 0:04:30]} 14. Qd2 {[%emt 0:01:30]} Bb7 {[%emt 0:08:30]} 15. Rfb1 {[%emt 0:10:30]} a5 {[%emt 0:01:30]} (15... Nfd7 $14) 16. Nb5 {[%emt 0:00:00]} Qc6 {[%emt 0:01:30]} (16... Qd7 $16) 17. Rxa5 {[%emt 0:01:00]} Ra8 {[%emt 0:00:30]} 18. Rba1 {[%emt 0:01:30]} Nfd7 {[%emt 0:01:30]} 19. Rxa8 {[%emt 0:00:30]} Rxa8 {[%emt 0:00:30]} 20. Rxa8+ {[%emt 0:00:00]} Nxa8 {[%emt 0:00:30]} 21. b3 {[%emt 0:03:00]} Nc7 {[%emt 0:02:30]} 22. Nbc3 {[%emt 0:04:30]} (22. Qa5 $142 Nxb5 23. cxb5) 22... Qb6 {[%emt 0:01:30]} 23. Qd1 {[%emt 0:02:30]} Qa5 {[%emt 0:04:30]} 24. Nd5 {[%emt 0:02:30]} Nxd5 {[%emt 0:01:30]} 25. exd5 {[%emt 0:00:30]} Qa2 {[%emt 0:04:30]} 26. d4 {[%emt 0:04:30]} cxd4 {[%emt 0:00:30]} (26... Qa3 $16 27. h4 Bc8) 27. Bxd4 {[%emt 0:04:30]} Bxd4 {[%emt 0:01:30]} 28. Nxd4 {[%emt 0:00:00]} Nc5 {[%emt 0:00:30]} 29. Bf1 {[%emt 0:01:00]} (29. b4 $18 Nd7 30. Bf1) 29... Qb2 {[%emt 0:02:30]} 30. Nc6 {[%emt 0:10:30]} Bxc6 $18 {[%emt 0:04:30]} (30... Qxb3 $14 31. Nxe7+ Kf8 32. Qxb3 Nxb3) 31. dxc6 {[%emt 0:00:30]} Ne6 {[%emt 0:00:30]} 32. c5 {[%emt 0:01:30]} Qa3 {[%emt 0:00:30]} 33. cxd6 {[%emt 0:00:30]} exd6 {[%emt 0:00:30]} 34. Bc4 {[%emt 0:01:30]} Qc5 {[%emt 0:02:30]} 35. Qf3 {[%emt 0:00:30]} Kg7 {[%emt 0:00:30]} 36. h4 {[%emt 0:00:30]} h5 {[%emt 0:00:30]} 37. Bd5 {[%emt 0:03:30]} Nd8 {[%emt 0:00:30]} 38. b4 {[%emt 0:00:00]} Qc1+ {[%emt 0:00:30]} 39. Kg2 {[%emt 0:00:00]} f6 {[%emt 0:01:30]} 40. Qe4 {[%emt 0:00:30]} Kf8 {[%emt 0:01:30]} 41. Qxg6 {[%emt 0:00:30]} Nxc6 {[%emt 0:00:00]} 1-0

[Event "5th Cesme Open 2017"]
[Site "Cesme"]
[Date "2017.06.13"]
[Round "3.20"]
[White "Morchiashvili, Bachana"]
[Black "Unlu, Alp Bugra"]
[Result "1-0"]
[ECO "E92"]
[WhiteElo "2403"]
[BlackElo "1887"]
[Annotator "ChessBase"]
[PlyCount "60"]
[EventType "swiss"]
[EventCountry "TUR"]
[SourceTitle "playchess.com"]
[Source "ChessBase"]
[SourceQuality "1"]
[TimeControl "5400+30"]

1. d4 {[%emt 0:00:30]} Nf6 {[%emt 0:01:00]} 2. c4 {[%emt 0:00:00]} g6 {[%emt 0:00:00]} 3. Nc3 {[%emt 0:00:00]} Bg7 {[%emt 0:00:00]} 4. Nf3 {[%emt 0:00:30]} O-O {[%emt 0:00:00]} 5. e4 {[%emt 0:00:30]} d6 {[%emt 0:00:00]} 6. h3 {[%emt 0:00:30]} e5 {[%emt 0:00:00]} 7. d5 {[%emt 0:00:30]} a5 {[%emt 0:00:00]} 8. Bg5 {[%emt 0:00:30]} Na6 {[%emt 0:00:30]} 9. Nd2 {[%emt 0:00:00]} Qe8 {[%emt 0:02:30]} 10. Be2 {[%emt 0:02:00]} h6 {[%emt 0:07:30]} 11. Be3 {[%emt 0:00:00]} Nd7 {[%emt 0:01:30]} 12. g4 {[%emt 0:02:00]} Ndc5 {[%emt 0:00:30] [%clk 1:23]} 13. Nb3 {[%emt 0:02:30]} f5 {[%emt 0:08:30]} 14. Nxc5 {[%emt 0:02:30]} Nxc5 {[%emt 0:00:30]} 15. gxf5 {[%emt 0:04:30]} gxf5 {[%emt 0:01:30]} 16. Rg1 {[%emt 0:03:30]} Rf6 {[%emt 0:03:30]} 17. exf5 {[%emt 0:01:30]} Bxf5 {[%emt 0:00:30]} 18. Qd2 {[%emt 0:00:00]} Kh8 {[%emt 0:02:30]} 19. O-O-O {[%emt 0:04:00]} Rg6 {[%emt 0:27:30]} 20. h4 {[%emt 0:09:30]} Rxg1 {[%emt 0:22:30]} 21. Rxg1 {[%emt 0:01:30]} Qf8 {[%emt 0:00:30]} 22. Rg3 {[%emt 0:10:30]} Qf6 {[%emt 0:02:30]} 23. h5 {[%emt 0:06:30]} e4 {[%emt 0:05:20]} 24. Nb5 {[%emt 0:01:30]} Nd7 {[%emt 0:09:49]} 25. Nxc7 {[%emt 0:17:30]} Rc8 {[%emt 0:01:25]} 26. Ne6 {[%emt 0:00:30]} Bxe6 {[%emt 0:00:16]} 27. Rg6 {[%emt 0:00:30]} Qf8 {[%emt 0:03:07]} 28. Bxh6 {[%emt 0:01:30]} Bxh6 {[%emt 0:00:26]} 29. Rxh6+ {[%emt 0:00:30]} Kg8 {[%emt 0:00:09]} 30. Qg5+ {[%emt 0:00:00]} Kf7 {[%emt 0:00:08]} 1-0